bitfinex/quotes_SOLUSD_20250111
["timestamp","ask_amount","ask_price","bid_price","bid_amount"]
[1736615732258,8.1319,186.02,185.93,9.00327928]
[1736615733152,23.776884,186.01,185.89,82.6]
[1736615733342,23.776884,186.01,185.92,9.00327928]
[1736615733545,23.776884,186.01,185.93,9.00327928]
[1736615734543,23.776884,186.01,185.92,9.00327928]
[1736615735260,23.776884,186.01,185.91,9.00327928]
[1736615735467,23.776884,186.01,185.9,30.54557828]
[1736615735756,23.776884,185.99,185.9,9.00327928]
[1736615735965,23.776884,185.99,185.88,21.54444]
[1736615736139,23.776884,185.99,185.88,30.54771928]
[1736615736341,1.5168,185.98,185.88,9.00327928]
[1736615737043,23.776884,185.97,185.88,9.00327928]
[1736615737371,6.6151,185.96,185.88,9.00327928]
[1736615738857,6.6151,185.96,185.86,42.35211506]
[1736615739162,6.6151,185.96,185.89,9.00327928]
[1736615739374,6.6151,185.96,185.88,9.00327928]
[1736615739740,6.6151,185.96,185.86,42.35211506]
[1736615739940,6.6151,185.96,185.86,41.545413]
[1736615740166,6.6151,185.96,185.88,9.00327928]
[1736615741274,1.5168,185.94,185.82,13.4536]
[1736615741571,23.776884,185.93,185.83,6.6151]
[1736615741870,23.776884,185.93,185.83,9.00327928]
[1736615742173,23.776884,185.93,185.81,83.40686846]
[1736615742540,1.5168,185.94,185.85,9.00327928]
[1736615742750,1.5168,185.94,185.88,9.00327928]
[1736615743859,1.5168,185.94,185.89,9.00327928]
[1736615744062,1.5168,185.98,185.93,9.00327928]
[1736615744270,1.5168,185.98,185.95,9.00327928]
[1736615744573,1.5168,186.03,185.97,9.00327928]
[1736615744786,1.5168,186.03,185.98,9.00327928]
[1736615744985,1.5168,186.03,185.99,9.00327928]
[1736615747387,1.5168,186.03,185.99,14.06734474]
[1736615747968,1.5168,186.03,186.0,14.06734474]
[1736615748191,1.5168,186.07,186.02,14.06734474]
[1736615753491,1.5168,186.07,186.03,14.06734474]
[1736615754097,1.5168,186.07,185.98,0.80600798]
[1736615754098,1.5168,186.07,186.02,14.06734474]
[1736615754302,1.5168,186.07,186.01,14.06734474]
[1736615754605,1.5168,186.07,185.97,14.06734474]
[1736615755630,1.5168,186.07,185.98,14.06734474]
[1736615755829,1.5168,186.07,186.0,14.06734474]
[1736615756135,1.5168,186.07,186.01,14.06734474]
[1736615757134,1.5168,186.07,185.99,14.06734474]
[1736615757634,1.5168,186.07,186.0,14.06734474]
[1736615758528,1.5168,186.07,186.01,14.06734474]
[1736615758730,1.5168,186.07,186.02,14.06734474]
[1736615759237,1.5168,186.07,186.03,14.06734474]
[1736615759531,8.1223,186.11,186.04,14.06734474]
[1736615760036,8.1223,186.11,186.03,14.06734474]
[1736615760328,985.93265526,186.03,186.0,0.80594312]
[1736615760632,985.93265526,186.03,186.02,14.06734474]
[1736615766658,985.93265526,186.03,186.01,14.06734474]
[1736615769064,985.93265526,186.03,186.02,14.06734474]
[1736615769888,985.93265526,186.03,186.01,14.06734474]
[1736615770064,985.93265526,186.03,186.0,14.06734474]
[1736615770234,985.93265526,186.03,186.01,14.06734474]
[1736615770957,985.93265526,186.03,186.02,14.06734474]
[1736615772854,985.93265526,186.03,186.02,28.13468974]
[1736615773741,985.93265526,186.03,186.0,14.06734474]
[1736615773938,985.93265526,186.03,186.01,21.529741]
[1736615774261,985.93265526,186.03,186.01,35.59708574]
[1736615775145,985.93265526,186.03,186.02,14.06734474]
[1736615775970,985.93265526,186.03,186.01,35.59708574]
[1736615776258,985.93265526,186.03,186.01,21.529741]
[1736615776430,985.93265526,186.03,186.01,35.59708574]
[1736615776636,985.93265526,186.03,186.0,14.06734474]
[1736615776838,985.93265526,186.03,185.98,14.06734474]
[1736615777050,985.93265526,186.03,185.99,21.531925]
[1736615777251,985.93265526,186.03,185.98,14.06734474]
[1736615777558,985.93265526,186.03,185.98,35.60004274]
[1736615778438,985.93265526,186.03,186.0,14.06734474]
[1736615779159,985.93265526,186.03,186.01,14.06734474]
[1736615779859,985.93265526,186.03,186.02,14.06734474]
[1736615781337,985.93265526,186.03,186.02,41.57408948]
[1736615781544,985.93265526,186.03,186.02,65.35097348]
[1736615781545,871.88364076,186.03,186.02,65.35097348]
[1736615781768,831.32324076,186.03,186.02,70.35097348]
[1736615781982,811.18334076,186.03,186.02,65.35097348]
[1736615782470,811.18334076,186.03,186.02,70.35097348]
[1736615783367,793.88874076,186.03,186.02,13.4394]
[1736615783547,793.88874076,186.03,186.02,27.50674474]
[1736615784164,793.88874076,186.03,186.02,41.57408948]
[1736615785067,793.88874076,186.03,186.02,65.35097348]
[1736615785266,636.77150775,186.03,186.02,105.47646348]
[1736615785572,460.1682509,186.03,186.02,106.58495069]
[1736615785758,392.5109509,186.03,186.02,106.83593069]
[1736615786073,194.68017077,186.03,186.02,139.15593069]
[1736615786292,88.63889063,186.03,186.02,139.15593069]
[1736615786578,8.951e-05,186.03,186.02,106.83593069]
[1736615787469,1.5303,186.18,186.15,14.06734474]
[1736615787876,1.5303,186.18,186.1,4.76]
[1736615787877,1.5303,186.18,186.16,14.06734474]
[1736615788171,1.5303,186.22,186.17,14.06734474]
[1736615788389,1.5303,186.22,186.19,14.06734474]
[1736615788665,1.5303,186.22,186.18,14.06734474]
[1736615788875,1.5303,186.22,186.16,20.0]
[1736615789089,1.5303,186.22,186.18,14.06734474]
[1736615789296,1.5303,186.22,186.17,14.06734474]
[1736615789987,1.5303,186.22,186.18,14.06734474]
[1736615790860,1.5303,186.22,186.15,14.06734474]
[1736615791073,1.5303,186.22,186.13,82.6]
[1736615791446,1.5303,186.22,186.13,96.66734474]
[1736615792168,1.5303,186.22,186.14,14.06734474]
[1736615792386,1.5303,186.22,186.15,14.06734474]
[1736615793176,1.5303,186.22,186.13,96.66734474]
[1736615793780,1.5303,186.22,186.13,82.6]
[1736615794157,6.2205,186.21,186.13,82.6]
[1736615794773,6.2205,186.21,186.1,4.76]
[1736615796186,6.2205,186.21,186.1,18.82734474]
[1736615796377,23.776884,186.2,186.11,14.06734474]
[1736615797156,6.2205,186.21,186.13,14.06734474]
[1736615797467,6.2205,186.21,186.15,14.06734474]
[1736615798167,6.2205,186.21,186.17,14.06734474]
[1736615798481,1.5303,186.22,186.18,14.06734474]
[1736615799896,1.5303,186.22,186.17,14.06734474]
[1736615801485,1.5303,186.22,186.18,14.06734474]
[1736615802688,1.5303,186.22,186.17,14.06734474]
[1736615802861,1.5303,186.22,186.16,34.06734474]
[1736615803062,1.5303,186.22,186.14,14.06734474]
[1736615803275,1.5303,186.22,186.11,96.66734474]
[1736615803677,1.5303,186.22,186.12,14.06734474]
[1736615804076,23.776884,186.21,186.11,82.6]
[1736615804391,6.3417,186.2,186.09,4.74]
[1736615805574,6.3417,186.2,186.11,14.06734474]
[1736615805965,6.3417,186.2,186.12,14.06734474]
[1736615806376,6.3417,186.2,186.13,14.06734474]
[1736615806783,6.3417,186.2,186.11,14.06734474]
[1736615806979,6.3417,186.2,186.1,14.06734474]
[1736615807984,6.3417,186.2,186.09,18.80734474]
[1736615808293,6.3417,186.2,186.07,14.06734474]
[1736615808294,23.776884,186.19,186.07,14.06734474]
[1736615809577,23.776884,186.19,186.07,14.8731041]
[1736615809800,6.3417,186.2,186.09,14.06734474]
[1736615810374,6.3417,186.2,186.1,14.06734474]
[1736615811094,6.3417,186.2,186.09,34.06734474]
[1736615811487,6.3417,186.2,186.1,14.06734474]
[1736615813373,6.3417,186.2,186.13,14.06734474]
[1736615815000,6.3417,186.2,186.14,14.06734474]
[1736615815215,1.5303,186.22,186.17,14.06734474]
[1736615817988,1.5303,186.22,186.16,14.06734474]
[1736615818189,1.5303,186.22,186.11,14.23797528]
[1736615818387,21.5303,186.22,186.1,96.66734474]
[1736615819207,21.5303,186.22,186.12,14.06734474]
[1736615819382,21.5303,186.22,186.13,14.06734474]
[1736615820277,21.5303,186.22,186.14,14.06734474]
[1736615820596,1.5303,186.22,186.14,14.06734474]
[1736615820998,1.5303,186.22,186.16,14.06734474]
[1736615821301,1.5303,186.22,186.17,14.06734474]
[1736615821482,1.5303,186.22,186.19,148.96734474]
[1736615821796,1.5303,186.22,186.19,134.9]
[1736615822601,21.5303,186.22,186.19,134.9]
[1736615823688,1.5303,186.22,186.19,134.9]
[1736615826801,23.776884,186.21,186.12,134.9]
[1736615827008,6.5077,186.2,186.12,134.9]
[1736615828521,6.5077,186.2,186.12,148.96734474]
[1736615829020,6.5077,186.2,186.13,0.80550137]
[1736615829327,6.5077,186.2,186.13,14.87284611]
[1736615829495,1.5303,186.22,186.16,148.96734474]
[1736615829694,1.5303,186.22,186.17,14.06734474]
[1736615831115,1.5303,186.22,186.16,148.96734474]
[1736615833317,1.5303,186.22,186.17,14.06734474]
[1736615833616,1.5303,186.22,186.17,148.96734474]
[1736615836013,1.5303,186.22,186.17,134.9]
[1736615836221,1.5303,186.22,186.17,148.96734474]
[1736615836515,1.5303,186.22,186.17,134.9]
[1736615839614,1.5303,186.22,186.15,134.9]
[1736615840190,21.5303,186.22,186.15,134.9]
[1736615840622,6.3407,186.2,186.15,134.9]
[1736615845528,6.3407,186.2,186.1,148.96734474]
[1736615845915,6.3407,186.2,186.1,134.9]
[1736615848325,6.3407,186.2,186.1,148.96734474]
[1736615848631,6.3407,186.2,186.11,14.87295406]
[1736615849017,6.3407,186.2,186.1,148.96734474]
[1736615851027,1.6341,186.19,186.1,134.9]
[1736615851408,23.776884,186.18,186.1,134.9]
[1736615853329,12.3762,186.19,186.1,134.9]
[1736615853826,1.6341,186.19,186.1,148.96734474]
[1736615854126,1.6341,186.19,186.12,14.06734474]
[1736615854517,1.6341,186.19,186.12,148.96734474]
[1736615855821,1.6341,186.19,186.12,134.9]
[1736615858435,1.6341,186.19,186.12,148.96734474]
[1736615858638,1.6341,186.19,186.15,148.96734474]
[1736615858806,1.6341,186.19,186.16,14.06734474]
[1736615859439,1.6341,186.19,186.15,148.96734474]
[1736615860121,1.6341,186.19,186.15,134.9]
[1736615861246,6.182,186.18,186.15,134.9]
[1736615863436,6.182,186.18,186.08,134.9]
[1736615868943,6.182,186.18,186.08,148.96734474]
[1736615869131,6.182,186.18,186.11,148.96734474]
[1736615871320,6.182,186.18,186.12,148.96734474]
[1736615875827,6.182,186.18,186.12,134.9]
[1736615876152,6.182,186.18,186.13,23.776884]
[1736615879852,6.182,186.18,186.12,134.9]
[1736615882758,6.182,186.18,186.09,134.9]
[1736615883543,1.6602,186.17,186.09,134.9]
[1736615883734,20.0,186.15,186.05,145.6392]
[1736615883958,7.8097,186.14,186.05,145.6392]
[1736615885456,7.8097,186.14,186.05,159.70654474]
[1736615885962,7.8097,186.14,186.05,148.96734474]
[1736615886137,7.8097,186.14,186.06,14.06734474]
[1736615886336,7.8097,186.14,186.05,148.96734474]
[1736615888066,7.8097,186.14,186.05,134.9]
[1736615888359,1.6602,186.1,186.01,134.9]
[1736615892549,1.6602,186.1,186.02,23.776884]
[1736615893355,1.6602,186.1,186.02,158.676884]
[1736615896448,20.0,186.09,186.02,158.676884]
[1736615897051,1.6602,186.1,186.02,158.676884]
[1736615897251,1.6602,186.1,186.04,14.06734474]
[1736615897478,1.6602,186.1,186.07,23.776884]
[1736615897667,7.788,186.14,186.09,23.776884]
[1736615897965,1.6385,186.14,186.09,172.74422874]
[1736615898558,1.6385,186.14,186.11,23.776884]
[1736615898866,7.6386,186.18,186.11,172.74422874]
[1736615899168,7.6386,186.18,186.13,23.776884]
[1736615899667,7.6386,186.18,186.12,23.776884]
[1736615900469,7.6386,186.18,186.12,37.84422874]
[1736615900765,1.6385,186.18,186.13,14.06734474]
[1736615900965,1.6385,186.18,186.14,23.776884]
[1736615902566,1.6385,186.18,186.13,134.9]
[1736615903567,1.6385,186.18,186.14,23.776884]
[1736615905368,1.6385,186.18,186.14,158.676884]
[1736615911369,1.6385,186.18,186.13,23.776884]
[1736615917195,7.6279,186.23,186.15,172.74422874]
[1736615918796,7.6279,186.23,186.15,158.676884]
[1736615919894,7.6279,186.23,186.15,134.9]
[1736615920264,7.6279,186.23,186.13,23.776884]
[1736615921270,7.6279,186.23,186.15,23.776884]
[1736615923698,7.6279,186.23,186.13,32.76606319]
[1736615924409,7.6279,186.23,186.13,23.776884]
[1736615926092,7.6279,186.23,186.13,32.76606319]
[1736615926270,7.6279,186.23,186.13,167.66606319]
[1736615927076,7.6279,186.23,186.15,8.98917919]
[1736615928288,7.6279,186.23,186.17,23.776884]
[1736615931007,7.6279,186.23,186.15,8.98917919]
[1736615931212,7.6279,186.23,186.16,23.776884]
[1736615932300,7.6279,186.23,186.16,158.676884]
[1736615933699,7.6279,186.23,186.16,167.66606319]
[1736615935978,1.6278,186.23,186.19,8.98917919]
[1736615936211,1.6278,186.23,186.2,23.776884]
[1736615936498,1.502,186.27,186.2,167.66606319]
[1736615938297,1.502,186.27,186.22,23.776884]
[1736615940301,1.502,186.27,186.18,143.88917919]
[1736615940612,1.502,186.27,186.18,134.9]
[1736615941894,1.502,186.27,186.19,23.776884]
[1736615942280,1.502,186.27,186.2,8.98917919]
[1736615942709,1.502,186.27,186.19,32.76606319]
[1736615943982,1.502,186.27,186.2,8.98917919]
[1736615944183,1.502,186.27,186.22,23.776884]
[1736615944397,1.502,186.27,186.22,158.676884]
[1736615949516,1.502,186.27,186.22,167.66606319]
[1736615952194,1.502,186.27,186.23,8.98917919]
[1736615952399,22.67110973,186.3,186.25,8.98917919]
[1736615952705,22.67110973,186.3,186.26,23.776884]
[1736615953811,22.67110973,186.3,186.26,32.76606319]
[1736615954016,22.67110973,186.3,186.26,8.98917919]
[1736615954523,22.67110973,186.3,186.25,23.776884]
[1736615955307,22.67110973,186.3,186.25,32.76606319]
[1736615956225,22.67110973,186.3,186.25,167.66606319]
[1736615956720,22.67110973,186.3,186.25,158.676884]
[1736615956905,22.67110973,186.3,186.25,167.66606319]
[1736615958105,22.67110973,186.3,186.28,23.776884]
[1736615958300,22.67110973,186.3,186.29,32.76606319]
[1736615958505,7.8428,186.37,186.3,23.776884]
[1736615958720,7.8428,186.37,186.32,23.776884]
[1736615959403,1.5737,186.37,186.34,23.776884]
[1736615962627,1.5737,186.37,186.34,32.76606319]
[1736615962927,1.5737,186.41,186.34,167.66606319]
[1736615963108,1.5737,186.41,186.36,23.776884]
[1736615964727,1.5737,186.41,186.36,158.676884]
[1736615964909,1.5737,186.41,186.36,134.9]
[1736615965932,1.5737,186.41,186.34,23.776884]
[1736615966833,1.5737,186.41,186.34,8.98917919]
[1736615968614,1.5737,186.41,186.36,23.776884]
[1736615970114,1.5737,186.41,186.36,8.98917919]
[1736615971335,1.6215,186.45,186.37,167.66606319]
[1736615971535,1.6215,186.45,186.39,23.776884]
[1736615973241,1.6215,186.45,186.38,23.776884]
[1736615977273,1.6215,186.45,186.38,158.676884]
[1736615977431,1.6215,186.45,186.38,167.66606319]
[1736615978670,1.6215,186.45,186.39,8.98917919]
[1736615978960,1.6215,186.45,186.41,23.776884]
[1736615984673,21.6215,186.45,186.4,134.9]
[1736615984851,6.3092,186.44,186.38,5.0]
[1736615985247,1.6463,186.43,186.38,5.0]
[1736615986341,10.7283,186.43,186.38,5.0]
[1736615986564,27.9555,186.39,186.26,8.98917919]
[1736615986769,32.9555,186.39,186.26,8.98917919]
[1736615987067,32.9555,186.39,186.24,143.88917919]
[1736615987068,1.6463,186.38,186.24,143.88917919]
[1736615987370,1.6463,186.38,186.26,23.776884]
[1736615988068,12.3775,186.38,186.26,8.98917919]
[1736615988272,1.6463,186.38,186.31,23.776884]
[1736615988584,1.6463,186.38,186.31,32.76606319]
[1736615988880,1.6463,186.38,186.33,23.776884]
[1736615989486,1.6463,186.38,186.32,37.79598268]
[1736615991471,1.6255,186.42,186.35,14.01909868]
[1736615991655,1.6255,186.42,186.36,23.776884]
[1736615992555,1.6255,186.42,186.36,14.01909868]
[1736615994552,1.6255,186.42,186.35,37.79598268]
[1736615996451,1.6255,186.42,186.36,14.01909868]
[1736615997071,1.6255,186.42,186.38,23.776884]
[1736615998353,8.0992,186.48,186.4,23.776884]
[1736615999051,8.0992,186.48,186.4,37.79598268]
[1736616001673,1.6255,186.48,186.44,23.776884]
[1736616002586,1.6255,186.48,186.44,14.01909868]
[1736616002975,8.0992,186.52,186.46,14.01909868]
[1736616003179,1.6255,186.52,186.48,37.79598268]
[1736616003358,24.25364347,186.57,186.5,23.776884]
[1736616006677,24.25364347,186.57,186.47,14.01909868]
[1736616006861,24.25364347,186.57,186.45,134.9]
[1736616007063,33.63384347,186.57,186.45,134.9]
[1736616007658,33.63384347,186.57,186.46,23.776884]
[1736616007883,20.0,186.54,186.45,134.9]
[1736616008161,26.4737,186.52,186.4,134.9]
[1736616009095,9.3828,186.51,186.4,134.9]
[1736616009386,9.3828,186.51,186.38,217.5]
[1736616009895,1.6255,186.47,186.38,217.5]
[1736616010182,21.6255,186.47,186.36,148.91909868]
[1736616010405,21.6255,186.47,186.37,23.776884]
[1736616010686,1.6255,186.47,186.37,37.79598268]
[1736616011180,1.6255,186.47,186.39,23.776884]
[1736616012167,1.6255,186.47,186.41,23.776884]
[1736616013060,1.6255,186.47,186.43,23.776884]
[1736616013369,8.1394,186.52,186.43,172.69598268]
[1736616013985,8.1394,186.52,186.45,23.776884]
[1736616015166,8.1394,186.52,186.46,14.01909868]
[1736616015372,8.1394,186.52,186.47,37.79598268]
[1736616018084,8.1394,186.52,186.47,23.776884]
[1736616018688,8.1394,186.52,186.47,37.79598268]
[1736616018886,8.2306,186.57,186.49,14.01909868]
[1736616019190,8.2306,186.57,186.5,37.79598268]
[1736616020867,8.2306,186.57,186.52,23.776884]
[1736616028465,1.6657,186.57,186.52,23.776884]
[1736616028773,6.5649,186.61,186.52,255.29598268]
[1736616029183,6.5649,186.61,186.54,23.776884]
[1736616031068,6.5649,186.61,186.53,23.776884]
[1736616037007,6.5649,186.61,186.56,23.776884]
[1736616038900,6.5649,186.61,186.57,8.95169277]
[1736616039099,1.6657,186.62,186.57,8.95169277]
[1736616039297,1.6657,186.62,186.56,32.72857677]
[1736616040077,1.6657,186.62,186.58,23.776884]
[1736616040296,8.0643,186.66,186.58,167.62857677]
[1736616041093,8.0643,186.66,186.59,8.95169277]
[1736616042101,8.0643,186.66,186.6,32.72857677]
[1736616042285,1.606,186.66,186.62,8.95169277]
[1736616042982,1.606,186.66,186.62,23.776884]
[1736616043383,1.606,186.66,186.58,217.5]
[1736616043702,1.606,186.66,186.59,8.95169277]
[1736616043998,1.606,186.66,186.6,23.776884]
[1736616046383,1.606,186.66,186.6,8.95169277]
[1736616046784,1.606,186.7,186.62,158.676884]
[1736616046998,1.606,186.7,186.62,167.62857677]
[1736616048283,1.606,186.7,186.64,23.776884]
[1736616048485,1.606,186.7,186.64,158.676884]
[1736616048803,1.606,186.7,186.64,167.62857677]
[1736616049005,1.606,186.7,186.64,158.676884]
[1736616053003,1.606,186.7,186.64,167.62857677]
[1736616053795,1.606,186.7,186.64,158.676884]
[1736616053990,1.606,186.7,186.64,134.9]
[1736616054191,12.3186,186.7,186.57,8.95169277]
[1736616054500,1.606,186.7,186.63,8.95169277]
[1736616054807,1.606,186.7,186.64,8.95169277]
[1736616055015,1.606,186.7,186.63,8.95169277]
[1736616055914,1.606,186.7,186.64,8.95169277]
[1736616056126,1.606,186.7,186.65,32.72857677]
[1736616056505,1.6194,186.75,186.67,8.95169277]
[1736616057193,1.6194,186.75,186.66,32.72857677]
[1736616058211,1.6194,186.75,186.66,23.776884]
[1736616058390,1.6194,186.75,186.66,32.72857677]
[1736616061098,1.6194,186.75,186.66,167.62857677]
[1736616063595,1.6194,186.75,186.66,158.676884]
[1736616064996,1.6194,186.75,186.66,167.62857677]
[1736616065617,1.6194,186.75,186.67,8.95169277]
[1736616065998,1.6194,186.75,186.66,167.62857677]
[1736616067006,1.6194,186.75,186.66,250.22857677]
[1736616069002,1.6194,186.75,186.68,23.776884]
[1736616069423,1.6194,186.75,186.67,23.776884]
[1736616071826,7.6536,186.71,186.59,226.45169277]
[1736616072002,7.6536,186.71,186.59,217.5]
[1736616072603,7.6536,186.71,186.6,23.776884]
[1736616073016,18.3659,186.71,186.59,226.45169277]
[1736616073427,18.3659,186.71,186.6,23.776884]
[1736616074230,7.6536,186.71,186.62,8.95169277]
[1736616074438,7.6536,186.71,186.65,23.776884]
[1736616074732,7.6536,186.71,186.65,158.676884]
[1736616076908,7.6536,186.71,186.65,167.62857677]
[1736616077104,7.6536,186.71,186.67,8.95169277]
[1736616077314,1.5404,186.71,186.67,8.95169277]
[1736616077816,1.5404,186.71,186.66,32.72857677]
[1736616078118,1.5404,186.71,186.66,167.62857677]
[1736616078335,1.5404,186.71,186.67,8.95169277]
[1736616079435,1.5404,186.71,186.66,167.62857677]
[1736616080415,1.5404,186.71,186.67,8.95169277]
[1736616082129,1.5404,186.71,186.68,23.776884]
[1736616086537,1.5404,186.71,186.67,134.9]
[1736616088115,1.5404,186.71,186.66,82.6]
[1736616090344,1.5404,186.71,186.6,145.6103]
[1736616090641,10.7123,186.7,186.6,134.9]
[1736616090949,6.3035,186.69,186.61,23.776884]
[1736616091238,6.3035,186.69,186.63,23.776884]
[1736616091414,6.3035,186.69,186.65,23.776884]
[1736616092333,6.3035,186.69,186.64,23.776884]
[1736616093232,6.3035,186.69,186.64,32.72857677]
[1736616093422,1.5404,186.71,186.64,32.72857677]
[1736616096051,1.5404,186.71,186.64,23.776884]
[1736616097326,1.5404,186.71,186.64,250.22857677]
[1736616097550,1.5404,186.71,186.65,8.95169277]
[1736616098748,1.5404,186.71,186.66,8.95169277]
[1736616099050,1.5404,186.71,186.65,32.72857677]
[1736616103052,1.5404,186.71,186.65,167.62857677]
[1736616103659,1.5891,186.75,186.68,8.95169277]
[1736616103833,1.5891,186.75,186.69,32.72857677]
[1736616104551,1.5891,186.75,186.69,23.776884]
[1736616109059,1.5891,186.75,186.69,158.676884]
[1736616109635,1.5891,186.75,186.69,167.62857677]
[1736616110635,1.5891,186.75,186.69,158.676884]
[1736616114158,6.3035,186.78,186.71,32.72857677]
[1736616114549,6.3035,186.78,186.71,23.776884]
[1736616117949,6.3035,186.78,186.7,23.776884]
[1736616119762,6.3035,186.78,186.7,8.95169277]
[1736616124165,6.3035,186.78,186.71,23.776884]
[1736616127378,6.3035,186.78,186.73,23.776884]
[1736616127680,86.9,186.87,186.73,23.776884]
[1736616127681,7.8422,186.83,186.74,167.62857677]
[1736616128269,7.8422,186.83,186.74,158.676884]
[1736616129177,1.5935,186.83,186.77,20.0]
[1736616129687,1.5935,186.83,186.74,158.676884]
[1736616133164,1.5935,186.83,186.74,167.62857677]
[1736616136183,1.5935,186.83,186.74,158.676884]
[1736616140061,6.2487,186.87,186.79,23.776884]
[1736616140275,6.2487,186.87,186.81,32.72857677]
[1736616140479,6.2487,186.87,186.81,8.95169277]
[1736616141700,6.2487,186.87,186.78,143.85169277]
[1736616141899,6.2487,186.87,186.78,134.9]
[1736616142080,6.2487,186.87,186.79,23.776884]
[1736616142285,16.9513,186.87,186.79,23.776884]
[1736616144583,16.9513,186.87,186.79,32.72857677]
[1736616146304,16.9513,186.87,186.75,175.28677108]
[1736616146305,16.9513,186.87,186.81,23.776884]
[1736616147277,16.9513,186.87,186.77,8.95169277]
[1736616147497,1.666,186.86,186.73,217.5]
[1736616147681,1.666,186.86,186.73,226.45169277]
[1736616147881,7.7055,186.85,186.74,158.676884]
[1736616148814,10.7043,186.84,186.74,158.676884]
[1736616149117,10.7043,186.84,186.74,134.9]
[1736616149493,10.7043,186.84,186.75,23.776884]
[1736616150616,10.7043,186.84,186.77,23.776884]
[1736616150783,10.7043,186.84,186.77,32.72857677]
[1736616151607,10.7043,186.84,186.77,23.776884]
[1736616152190,7.7055,186.85,186.79,23.776884]
[1736616153913,7.7055,186.85,186.79,8.95169277]
[1736616156915,1.666,186.85,186.81,23.776884]
[1736616157286,6.5167,186.89,186.83,23.776884]
[1736616157600,6.5167,186.89,186.83,8.95169277]
[1736616157807,6.5167,186.89,186.82,32.72857677]
[1736616158590,6.5167,186.89,186.82,167.62857677]
[1736616160410,6.5167,186.89,186.82,158.676884]
[1736616160610,10.702,186.88,186.82,158.676884]
[1736616160994,10.702,186.88,186.77,8.95169277]
[1736616161894,10.702,186.88,186.76,8.95169277]
[1736616162213,20.0,186.85,186.74,8.95169277]
[1736616162394,1.5788,186.87,186.71,139.48]
[1736616162395,10.7049,186.83,186.73,8.95169277]
[1736616162594,10.7049,186.83,186.74,23.776884]
[1736616163212,10.7049,186.83,186.74,8.95169277]
[1736616163592,10.7049,186.83,186.76,23.776884]
[1736616166520,10.7049,186.83,186.72,0.80294318]
[1736616166724,10.7049,186.83,186.74,8.95169277]
[1736616166904,10.7049,186.83,186.76,23.776884]
[1736616169209,10.7049,186.83,186.76,8.95169277]
[1736616170826,6.247,186.84,186.78,32.72857677]
[1736616171715,6.247,186.84,186.73,217.5]
[1736616171915,6.247,186.84,186.75,8.95169277]
[1736616172110,6.247,186.84,186.76,23.776884]
[1736616172922,6.247,186.84,186.77,23.776884]
[1736616173325,6.247,186.84,186.77,32.72857677]
[1736616174831,6.247,186.84,186.8,23.776884]
[1736616176012,10.7034,186.86,186.8,23.776884]
[1736616177842,10.7034,186.86,186.79,32.72857677]
[1736616178436,10.7034,186.86,186.77,8.95169277]
[1736616178642,10.7034,186.86,186.76,8.95169277]
[1736616178821,10.7034,186.86,186.75,226.45169277]
[1736616179745,10.7034,186.86,186.76,23.776884]
[1736616180045,10.7034,186.86,186.76,32.72857677]
[1736616180359,10.7034,186.86,186.78,23.776884]
[1736616180642,10.7034,186.86,186.78,32.72857677]
[1736616180823,10.7034,186.86,186.78,23.776884]
[1736616181624,10.7034,186.86,186.76,32.72857677]
[1736616181823,10.7034,186.86,186.78,23.776884]
[1736616183445,10.7034,186.86,186.78,8.95169277]
[1736616185449,10.7034,186.86,186.78,23.776884]
[1736616185837,10.7034,186.86,186.72,139.48]
[1736616186150,10.7034,186.86,186.75,23.776884]
[1736616188734,10.7034,186.86,186.75,8.95169277]
[1736616189852,10.7034,186.86,186.77,8.95169277]
[1736616191858,10.7034,186.86,186.77,32.72857677]
[1736616193346,10.7034,186.86,186.79,23.776884]
[1736616193855,10.7034,186.86,186.78,23.776884]
[1736616194260,10.7034,186.86,186.76,8.95169277]
[1736616194760,10.7034,186.86,186.75,8.95169277]